[Event "*** Titled Tuesday Blitz"]
[Site "Chess.com"]
[Date "2020.04.28"]
[Round "4"]
[White "RATNAKARAN"]
[Black "barbara25"]
[Result "1-0"]
[WhiteElo "2591"]
[BlackElo "2266"]
[TimeControl "180+1"]
[EndTime "10:39:25 PDT"]
[Termination "RATNAKARAN won by resignation"]

1. e4 {[%clk 0:03:00.9]} 1... c5 {[%clk 0:02:59.5]} 2. Nf3 {[%clk 0:03:00.5]}
2... d6 {[%clk 0:02:57.9]} 3. c3 {[%clk 0:03:00.5]} 3... Nf6 {[%clk 0:02:56.7]}
4. h3 {[%clk 0:03:00.3]} 4... g6 {[%clk 0:02:52.5]} 5. Bd3 {[%clk 0:02:56.3]}
5... Bg7 {[%clk 0:02:51.8]} 6. Bc2 {[%clk 0:02:56.8]} 6... O-O {[%clk
0:02:51.9]} 7. O-O {[%clk 0:02:55.1]} 7... Nc6 {[%clk 0:02:52.1]} 8. Re1 {[%clk
0:02:54]} 8... e5 {[%clk 0:02:52]} 9. d3 {[%clk 0:02:53.2]} 9... b5 {[%clk
0:02:51.5]} 10. Nbd2 {[%clk 0:02:52.6]} 10... a5 {[%clk 0:02:51.7]} 11. Nf1
{[%clk 0:02:53.5]} 11... b4 {[%clk 0:02:51.9]} 12. Ng3 {[%clk 0:02:54.4]} 12...
Ba6 {[%clk 0:02:47.7]} 13. Ba4 {[%clk 0:02:53.2]} 13... Rc8 {[%clk 0:02:46.6]}
14. Be3 {[%clk 0:02:50.5]} 14... Ne7 {[%clk 0:02:37.9]} 15. Qd2 {[%clk
0:02:49.6]} 15... Qc7 {[%clk 0:02:36.8]} 16. Rad1 {[%clk 0:02:48.3]} 16... d5
{[%clk 0:02:32.4]} 17. Bh6 {[%clk 0:02:47.7]} 17... dxe4 {[%clk 0:02:18.5]} 18.
dxe4 {[%clk 0:02:46.8]} 18... Rfd8 {[%clk 0:02:17.6]} 19. Qg5 {[%clk 0:02:46.3]}
19... Rxd1 {[%clk 0:02:11.2]} 20. Rxd1 {[%clk 0:02:47.2]} 20... Rd8 {[%clk
0:02:03.3]} 21. Rxd8+ {[%clk 0:02:45.8]} 21... Qxd8 {[%clk 0:02:03.3]} 22. Bxg7
{[%clk 0:02:44.5]} 22... Kxg7 {[%clk 0:02:03.4]} 23. Qxe5 {[%clk 0:02:43.2]}
23... c4 {[%clk 0:01:43.8]} 24. Nd4 {[%clk 0:02:38.5]} 24... Bc8 {[%clk
0:01:13]} 25. Qc5 {[%clk 0:02:32.7]} 25... Bb7 {[%clk 0:00:35]} 26. f3 {[%clk
0:02:25.7]} 26... h5 {[%clk 0:00:22.4]} 27. Qxc4 {[%clk 0:02:19.6]} 27... h4
{[%clk 0:00:22]} 28. Nge2 {[%clk 0:02:17.8]} 28... Nh5 {[%clk 0:00:21.8]} 29.
Bb3 {[%clk 0:02:15.9]} 29... Qf8 {[%clk 0:00:17.5]} 30. cxb4 {[%clk 0:02:15.7]}
30... axb4 {[%clk 0:00:17.4]} 31. Qxb4 {[%clk 0:02:15.8]} 31... Bc8 {[%clk
0:00:17.3]} 32. Qc3 {[%clk 0:02:12.7]} 32... Kh7 {[%clk 0:00:15.9]} 33. a3
{[%clk 0:02:12.3]} 33... Ng8 {[%clk 0:00:15.7]} 34. Bxf7 {[%clk 0:02:09.7]}
34... Qxf7 {[%clk 0:00:14.9]} 35. Qxc8 {[%clk 0:02:09.5]} 35... Nh6 {[%clk
0:00:12.7]} 36. Qe6 {[%clk 0:02:08.1]} 36... Qa7 {[%clk 0:00:11.8]} 37. Kh2
{[%clk 0:02:04.7]} 37... Ng3 {[%clk 0:00:11]} 38. Qf6 {[%clk 0:01:59.2]} 38...
Nxe2 {[%clk 0:00:10.9]} 39. Nxe2 {[%clk 0:01:58.3]} 39... Qf2 {[%clk 0:00:10.9]}
40. Ng1 {[%clk 0:01:57.5]} 40... Qg3+ {[%clk 0:00:10.7]} 41. Kh1 {[%clk
0:01:56.8]} 41... Ng8 {[%clk 0:00:08.9]} 42. Qf7+ {[%clk 0:01:55.7]} 42... Kh8
{[%clk 0:00:09.1]} 43. a4 {[%clk 0:01:54.7]} 43... Nh6 {[%clk 0:00:06.5]} 44.
Qf6+ {[%clk 0:01:52.4]} 44... Kh7 {[%clk 0:00:06.6]} 45. a5 {[%clk 0:01:52.6]}
45... Ng8 {[%clk 0:00:05.9]} 46. Qf7+ {[%clk 0:01:52.2]} 46... Kh8 {[%clk
0:00:06.3]} 47. a6 {[%clk 0:01:52.6]} 47... Qb8 {[%clk 0:00:05.1]} 48. Qb7
{[%clk 0:01:50.4]} 1-0

[Event "*** Titled Tuesday Blitz"]
[Site "Chess.com"]
[Date "2020.04.28"]
[Round "4"]
[White "Xeslu"]
[Black "Lunow"]
[Result "1-0"]
[WhiteElo "2348"]
[BlackElo "2197"]
[TimeControl "180+1"]
[EndTime "10:39:25 PDT"]
[Termination "Xeslu won by resignation"]

1. e4 {[%clk 0:03:00.9]} 1... c5 {[%clk 0:02:56.8]} 2. Nf3 {[%clk 0:03:00.2]}
2... d6 {[%clk 0:02:57]} 3. Bc4 {[%clk 0:02:59.9]} 3... Nf6 {[%clk 0:02:53.8]}
4. d3 {[%clk 0:02:59.4]} 4... e6 {[%clk 0:02:51.6]} 5. O-O {[%clk 0:02:57.3]}
5... Be7 {[%clk 0:02:52.5]} 6. c3 {[%clk 0:02:56.4]} 6... O-O {[%clk 0:02:52.5]}
7. Bb3 {[%clk 0:02:56.2]} 7... Nc6 {[%clk 0:02:49.5]} 8. Re1 {[%clk 0:02:55.8]}
8... b5 {[%clk 0:02:43.3]} 9. a3 {[%clk 0:02:54.4]} 9... a5 {[%clk 0:02:39.8]}
10. Nbd2 {[%clk 0:02:53.7]} 10... Rb8 {[%clk 0:02:35.4]} 11. Nf1 {[%clk
0:02:53.1]} 11... b4 {[%clk 0:02:34.9]} 12. axb4 {[%clk 0:02:52.7]} 12... axb4
{[%clk 0:02:32.8]} 13. Ng3 {[%clk 0:02:49.2]} 13... d5 {[%clk 0:02:29]} 14. e5
{[%clk 0:02:47.6]} 14... Nd7 {[%clk 0:02:28.5]} 15. d4 {[%clk 0:02:46.7]} 15...
bxc3 {[%clk 0:02:24.2]} 16. bxc3 {[%clk 0:02:46.3]} 16... Qb6 {[%clk 0:02:17.8]}
17. Bc2 {[%clk 0:02:43.2]} 17... cxd4 {[%clk 0:02:15.3]} 18. cxd4 {[%clk
0:02:42.2]} 18... Nb4 {[%clk 0:02:14.1]} 19. Ba4 {[%clk 0:02:29.8]} 19... Qd8
{[%clk 0:02:04.4]} 20. Be3 {[%clk 0:02:12]} 20... Nb6 {[%clk 0:02:03.9]} 21. Bb3
{[%clk 0:02:01]} 21... Ba6 {[%clk 0:02:00.2]} 22. h3 {[%clk 0:01:57.2]} 22...
Bc4 {[%clk 0:01:55.1]} 23. Rb1 {[%clk 0:01:48.1]} 23... Bxb3 {[%clk 0:01:50]}
24. Rxb3 {[%clk 0:01:47.4]} 24... Nc4 {[%clk 0:01:49.9]} 25. Nh2 {[%clk
0:01:47.1]} 25... Na5 {[%clk 0:01:20.3]} 26. Rb1 {[%clk 0:01:44.1]} 26... Na2
{[%clk 0:01:14.2]} 27. Rxb8 {[%clk 0:01:42.6]} 27... Qxb8 {[%clk 0:01:10.7]} 28.
Nh5 {[%clk 0:01:29.8]} 28... f5 {[%clk 0:00:49.1]} 29. exf6 {[%clk 0:01:28.5]}
29... Bxf6 {[%clk 0:00:47.5]} 30. Qg4 {[%clk 0:01:25]} 30... Qd6 {[%clk
0:00:40.6]} 31. Ra1 {[%clk 0:01:21.1]} 31... Nb4 {[%clk 0:00:29.5]} 32. Rxa5
{[%clk 0:01:19.8]} 32... Qc6 {[%clk 0:00:26.9]} 33. Ra7 {[%clk 0:01:14.9]} 33...
g6 {[%clk 0:00:22]} 34. Nxf6+ {[%clk 0:01:14]} 34... Rxf6 {[%clk 0:00:19.3]} 35.
Qh4 {[%clk 0:01:14]} 1-0

[Event "*** Titled Tuesday Blitz"]
[Site "Chess.com"]
[Date "2020.04.28"]
[Round "4"]
[White "Quattroporte300"]
[Black "Muguet7"]
[Result "0-1"]
[WhiteElo "2300"]
[BlackElo "2481"]
[TimeControl "180+1"]
[EndTime "10:39:26 PDT"]
[Termination "Muguet7 won by checkmate"]

1. e4 {[%clk 0:02:58.7]} 1... c5 {[%clk 0:02:59.6]} 2. Nf3 {[%clk 0:02:57.4]}
2... e6 {[%clk 0:02:58.5]} 3. d4 {[%clk 0:02:57.1]} 3... cxd4 {[%clk 0:02:58.3]}
4. Nxd4 {[%clk 0:02:56.9]} 4... a6 {[%clk 0:02:58.4]} 5. c4 {[%clk 0:02:54.9]}
5... Nf6 {[%clk 0:02:57.5]} 6. Nc3 {[%clk 0:02:54.5]} 6... Bb4 {[%clk
0:02:57.6]} 7. Qd3 {[%clk 0:02:52.2]} 7... Qc7 {[%clk 0:02:56]} 8. a3 {[%clk
0:02:52.1]} 8... Be7 {[%clk 0:02:52.4]} 9. Be2 {[%clk 0:02:50.4]} 9... d6 {[%clk
0:02:52.1]} 10. O-O {[%clk 0:02:50.5]} 10... O-O {[%clk 0:02:51]} 11. Be3 {[%clk
0:02:50.9]} 11... Nbd7 {[%clk 0:02:49.3]} 12. f4 {[%clk 0:02:35.1]} 12... b6
{[%clk 0:02:46.5]} 13. Rac1 {[%clk 0:02:34.4]} 13... Bb7 {[%clk 0:02:46.1]} 14.
b4 {[%clk 0:02:33.4]} 14... Rac8 {[%clk 0:02:36.3]} 15. Rfd1 {[%clk 0:01:50.3]}
15... Rfd8 {[%clk 0:02:30]} 16. Kh1 {[%clk 0:01:47.9]} 16... Ba8 {[%clk
0:02:28.6]} 17. Qc2 {[%clk 0:01:32.9]} 17... g6 {[%clk 0:02:23.7]} 18. Bd3
{[%clk 0:01:18]} 18... Qb7 {[%clk 0:02:11.4]} 19. h3 {[%clk 0:01:13.4]} 19... h5
{[%clk 0:02:08]} 20. Qf2 {[%clk 0:01:10.1]} 20... e5 {[%clk 0:01:57.4]} 21. Nde2
{[%clk 0:00:55.1]} 21... b5 {[%clk 0:01:53.5]} 22. cxb5 {[%clk 0:00:49.8]} 22...
axb5 {[%clk 0:01:53.2]} 23. f5 {[%clk 0:00:47.7]} 23... Kg7 {[%clk 0:01:48.1]}
24. Bb1 {[%clk 0:00:35.2]} 24... Rc4 {[%clk 0:01:38.6]} 25. fxg6 {[%clk
0:00:30.6]} 25... fxg6 {[%clk 0:01:38.1]} 26. Ng3 {[%clk 0:00:29.6]} 26... Rf8
{[%clk 0:01:32]} 27. Qe2 {[%clk 0:00:20.6]} 27... Rfc8 {[%clk 0:01:27.3]} 28.
Bd3 {[%clk 0:00:18.5]} 28... Rxc3 {[%clk 0:01:26.6]} 29. Rxc3 {[%clk 0:00:17.7]}
29... Rxc3 {[%clk 0:01:26.7]} 30. Bd2 {[%clk 0:00:18.1]} 30... Rxa3 {[%clk
0:01:25.4]} 31. Qe3 {[%clk 0:00:18.1]} 31... Ng8 {[%clk 0:01:21.5]} 32. Rf1
{[%clk 0:00:16.5]} 32... Bf6 {[%clk 0:01:14.2]} 33. Rf3 {[%clk 0:00:12.3]} 33...
Qa7 {[%clk 0:01:12.5]} 34. Qe2 {[%clk 0:00:08.4]} 34... Ra1+ {[%clk 0:01:09.7]}
35. Kh2 {[%clk 0:00:08.6]} 35... Qg1# {[%clk 0:01:09]} 0-1

[Event "*** Titled Tuesday Blitz"]
[Site "Chess.com"]
[Date "2020.04.28"]
[Round "4"]
[White "Bathory44"]
[Black "Angel_Hranitel_37"]
[Result "1-0"]
[WhiteElo "2571"]
[BlackElo "2372"]
[TimeControl "180+1"]
[EndTime "10:39:27 PDT"]
[Termination "Bathory44 won by checkmate"]

1. e4 {[%clk 0:03:00.9]} 1... c5 {[%clk 0:02:59.7]} 2. c3 {[%clk 0:03:00.8]}
2... e6 {[%clk 0:02:59.6]} 3. d4 {[%clk 0:03:00]} 3... d5 {[%clk 0:02:59.9]} 4.
exd5 {[%clk 0:03:00.5]} 4... Qxd5 {[%clk 0:02:58.5]} 5. Nf3 {[%clk 0:02:59.3]}
5... Nf6 {[%clk 0:02:58.9]} 6. Bd3 {[%clk 0:02:59.4]} 6... Be7 {[%clk
0:02:55.9]} 7. Be3 {[%clk 0:02:59.8]} 7... cxd4 {[%clk 0:02:40.1]} 8. cxd4
{[%clk 0:02:58.6]} 8... O-O {[%clk 0:02:40]} 9. Nc3 {[%clk 0:02:59]} 9... Qd6
{[%clk 0:02:40]} 10. O-O {[%clk 0:02:58.9]} 10... Nc6 {[%clk 0:02:40.4]} 11. a3
{[%clk 0:02:58.7]} 11... b6 {[%clk 0:02:40.8]} 12. Qe2 {[%clk 0:02:58.6]} 12...
Bb7 {[%clk 0:02:41.1]} 13. Rad1 {[%clk 0:02:53.2]} 13... Rac8 {[%clk 0:02:40.7]}
14. Rfe1 {[%clk 0:02:52.2]} 14... Rfd8 {[%clk 0:02:38.8]} 15. Bb1 {[%clk
0:02:52.2]} 15... Qb8 {[%clk 0:02:36.5]} 16. h3 {[%clk 0:02:39.4]} 16... Bf8
{[%clk 0:02:32.2]} 17. Bg5 {[%clk 0:02:37.9]} 17... Be7 {[%clk 0:02:29]} 18. d5
{[%clk 0:02:14]} 18... exd5 {[%clk 0:02:19.8]} 19. Qd3 {[%clk 0:02:11.3]} 19...
Kf8 {[%clk 0:01:18.3]} 20. Bxf6 {[%clk 0:02:03.4]} 20... Bxf6 {[%clk 0:01:19.2]}
21. Qxh7 {[%clk 0:02:01.2]} 21... g6 {[%clk 0:01:07]} 22. Ng5 {[%clk 0:01:57]}
22... Qc7 {[%clk 0:00:19.8]} 23. Nb5 {[%clk 0:01:40]} 23... Qd7 {[%clk
0:00:19.4]} 24. Bxg6 {[%clk 0:01:31.1]} 24... Ne5 {[%clk 0:00:11.4]} 25. Bxf7
{[%clk 0:01:12.7]} 25... Rc5 {[%clk 0:00:05.4]} 26. Ne6+ {[%clk 0:01:03.4]}
26... Ke7 {[%clk 0:00:05.6]} 27. Bg6+ {[%clk 0:01:02.8]} 27... Kxe6 {[%clk
0:00:05.5]} 28. Bf5# {[%clk 0:01:02.9]} 1-0

[Event "*** Titled Tuesday Blitz"]
[Site "Chess.com"]
[Date "2020.04.28"]
[Round "4"]
[White "ParvizGasimov"]
[Black "DenishevM"]
[Result "0-1"]
[WhiteElo "2339"]
[BlackElo "2561"]
[TimeControl "180+1"]
[EndTime "10:39:29 PDT"]
[Termination "DenishevM won by resignation"]

1. e4 {[%clk 0:03:00]} 1... c5 {[%clk 0:02:59.6]} 2. Nf3 {[%clk 0:02:59.4]} 2...
d6 {[%clk 0:03:00]} 3. d4 {[%clk 0:02:59.7]} 3... cxd4 {[%clk 0:03:00.9]} 4.
Nxd4 {[%clk 0:03:00.4]} 4... Nf6 {[%clk 0:03:01.5]} 5. Nc3 {[%clk 0:03:01]} 5...
a6 {[%clk 0:03:02.1]} 6. Be3 {[%clk 0:03:01.2]} 6... e6 {[%clk 0:03:01.6]} 7. f3
{[%clk 0:03:01.1]} 7... b5 {[%clk 0:03:02]} 8. Qd2 {[%clk 0:03:01.2]} 8... Nbd7
{[%clk 0:03:02.4]} 9. g4 {[%clk 0:03:00]} 9... Nb6 {[%clk 0:03:02.5]} 10. a4
{[%clk 0:02:58.2]} 10... b4 {[%clk 0:03:02.3]} 11. Na2 {[%clk 0:02:57.9]} 11...
a5 {[%clk 0:02:51.3]} 12. c3 {[%clk 0:02:54.5]} 12... d5 {[%clk 0:02:48.1]} 13.
g5 {[%clk 0:02:14]} 13... Nfd7 {[%clk 0:02:43.6]} 14. cxb4 {[%clk 0:02:14.2]}
14... axb4 {[%clk 0:02:34.2]} 15. Nxb4 {[%clk 0:02:06.8]} 15... dxe4 {[%clk
0:02:09.5]} 16. Nbc6 {[%clk 0:01:45.5]} 16... Qc7 {[%clk 0:02:07.4]} 17. Rc1
{[%clk 0:01:42.7]} 17... Nd5 {[%clk 0:01:47.3]} 18. Nb5 {[%clk 0:01:28.4]} 18...
Qb7 {[%clk 0:01:42.4]} 19. fxe4 {[%clk 0:01:07.8]} 19... Nxe3 {[%clk 0:01:40.5]}
20. Qxe3 {[%clk 0:01:08.7]} 20... Rxa4 {[%clk 0:01:32.7]} 21. Be2 {[%clk
0:00:38.3]} 21... Rb4 {[%clk 0:01:09.5]} 22. O-O {[%clk 0:00:24.8]} 22... Rxb5
{[%clk 0:01:04.6]} 23. Bxb5 {[%clk 0:00:19.9]} 23... Qxb5 {[%clk 0:01:05.5]} 24.
Nd4 {[%clk 0:00:07.4]} 24... Bc5 {[%clk 0:00:58.2]} 25. Kh1 {[%clk 0:00:06.2]}
25... Bxd4 {[%clk 0:00:57.1]} 26. Qxd4 {[%clk 0:00:07.1]} 26... O-O {[%clk
0:00:57.4]} 27. Rc7 {[%clk 0:00:04.6]} 27... Qxf1+ {[%clk 0:00:57]} 0-1

[Event "*** Titled Tuesday Blitz"]
[Site "Chess.com"]
[Date "2020.04.28"]
[Round "4"]
[White "bazar-wokzal"]
[Black "Firehand33"]
[Result "0-1"]
[WhiteElo "2501"]
[BlackElo "2738"]
[TimeControl "180+1"]
[EndTime "10:39:35 PDT"]
[Termination "Firehand33 won on time"]

1. e4 {[%clk 0:03:00.9]} 1... d5 {[%clk 0:02:59.6]} 2. exd5 {[%clk 0:03:00.5]}
2... Qxd5 {[%clk 0:03:00.5]} 3. Nc3 {[%clk 0:03:00.3]} 3... Qd8 {[%clk
0:03:01.2]} 4. Nf3 {[%clk 0:03:00.4]} 4... Nf6 {[%clk 0:03:01.9]} 5. d4 {[%clk
0:03:00.5]} 5... g6 {[%clk 0:03:02.5]} 6. Bc4 {[%clk 0:02:58.9]} 6... Bg7 {[%clk
0:03:02.9]} 7. O-O {[%clk 0:02:58.7]} 7... O-O {[%clk 0:03:03.4]} 8. h3 {[%clk
0:02:58.6]} 8... Nc6 {[%clk 0:03:03.3]} 9. Bg5 {[%clk 0:02:56.9]} 9... h6 {[%clk
0:03:02.2]} 10. Bh4 {[%clk 0:02:56.3]} 10... g5 {[%clk 0:02:58]} 11. Bg3 {[%clk
0:02:56.3]} 11... Nh5 {[%clk 0:02:57.4]} 12. Be5 {[%clk 0:02:55.8]} 12... Nxe5
{[%clk 0:02:54.7]} 13. Nxe5 {[%clk 0:02:52.9]} 13... Nf4 {[%clk 0:02:54.4]} 14.
Ne4 {[%clk 0:02:30.1]} 14... Bf5 {[%clk 0:02:48.1]} 15. Re1 {[%clk 0:02:16.6]}
15... e6 {[%clk 0:02:40]} 16. c3 {[%clk 0:02:06.9]} 16... c6 {[%clk 0:02:28.2]}
17. Ng3 {[%clk 0:01:58.8]} 17... Bh7 {[%clk 0:02:27.3]} 18. Nh5 {[%clk
0:01:52.1]} 18... Nxh5 {[%clk 0:02:26.8]} 19. Qxh5 {[%clk 0:01:51.1]} 19... Qc7
{[%clk 0:02:23]} 20. h4 {[%clk 0:01:38.3]} 20... c5 {[%clk 0:02:14.1]} 21. hxg5
{[%clk 0:01:11.8]} 21... hxg5 {[%clk 0:02:13.9]} 22. Bb3 {[%clk 0:00:43.6]}
22... cxd4 {[%clk 0:02:10.4]} 23. cxd4 {[%clk 0:00:43.2]} 23... Qe7 {[%clk
0:02:03.1]} 24. Nxf7 {[%clk 0:00:34.7]} 24... Rxf7 {[%clk 0:01:52.1]} 25. Rxe6
{[%clk 0:00:34.4]} 25... Qf8 {[%clk 0:01:49.1]} 26. Rae1 {[%clk 0:00:33.4]}
26... Bxd4 {[%clk 0:01:37.2]} 27. Qxg5+ {[%clk 0:00:24]} 27... Kh8 {[%clk
0:01:35.4]} 28. R6e2 {[%clk 0:00:14.2]} 28... Bxf2+ {[%clk 0:01:32.6]} 29. Rxf2
{[%clk 0:00:13.8]} 29... Rxf2 {[%clk 0:01:32.8]} 30. Re7 {[%clk 0:00:10.9]}
30... Rf1+ {[%clk 0:01:32.1]} 31. Kh2 {[%clk 0:00:11]} 31... Qf4+ {[%clk
0:01:32.2]} 32. Qxf4 {[%clk 0:00:11]} 32... Rxf4 {[%clk 0:01:33.1]} 33. Rxb7
{[%clk 0:00:11]} 33... a5 {[%clk 0:01:27.3]} 34. Bd5 {[%clk 0:00:08.9]} 34...
Rd8 {[%clk 0:01:25.5]} 35. Rb5 {[%clk 0:00:07.8]} 35... Rf5 {[%clk 0:01:23.4]}
36. Bc4 {[%clk 0:00:06.5]} 36... Rxb5 {[%clk 0:01:23.2]} 37. Bxb5 {[%clk
0:00:06.8]} 37... Rd2 {[%clk 0:01:22.2]} 0-1

[Event "*** Titled Tuesday Blitz"]
[Site "Chess.com"]
[Date "2020.04.28"]
[Round "4"]
[White "crescentmoon2411"]
[Black "Gurvich_Vitaly"]
[Result "1-0"]
[WhiteElo "2789"]
[BlackElo "2558"]
[TimeControl "180+1"]
[EndTime "10:39:36 PDT"]
[Termination "crescentmoon2411 won on time"]

1. e4 {[%clk 0:03:00.9]} 1... c5 {[%clk 0:02:58.5]} 2. Nf3 {[%clk 0:03:00.8]}
2... Nc6 {[%clk 0:02:58.4]} 3. Bb5 {[%clk 0:02:58.8]} 3... g6 {[%clk 0:02:58]}
4. Bxc6 {[%clk 0:02:55.1]} 4... dxc6 {[%clk 0:02:58.9]} 5. d3 {[%clk 0:02:53]}
5... Bg7 {[%clk 0:02:58.9]} 6. Nc3 {[%clk 0:02:51.5]} 6... e5 {[%clk 0:02:55.4]}
7. Be3 {[%clk 0:02:43.9]} 7... b6 {[%clk 0:02:55]} 8. a3 {[%clk 0:02:38.4]} 8...
a5 {[%clk 0:02:54.2]} 9. h3 {[%clk 0:02:30]} 9... Qc7 {[%clk 0:02:53.2]} 10. O-O
{[%clk 0:02:29.4]} 10... h6 {[%clk 0:02:40.9]} 11. Nd2 {[%clk 0:02:15.9]} 11...
g5 {[%clk 0:02:37.4]} 12. Nc4 {[%clk 0:02:09]} 12... a4 {[%clk 0:02:04.5]} 13.
b3 {[%clk 0:02:02.6]} 13... axb3 {[%clk 0:02:05.4]} 14. cxb3 {[%clk 0:02:02.8]}
14... b5 {[%clk 0:00:50]} 15. Nd2 {[%clk 0:02:02.4]} 15... Qd6 {[%clk
0:00:49.8]} 16. Qc2 {[%clk 0:02:01.9]} 16... Ne7 {[%clk 0:00:43.6]} 17. Ne2
{[%clk 0:01:56.5]} 17... Ng6 {[%clk 0:00:43.5]} 18. Bxc5 {[%clk 0:01:52.6]}
18... Qd7 {[%clk 0:00:41.9]} 19. Rfd1 {[%clk 0:01:49.5]} 19... Nh4 {[%clk
0:00:37.5]} 20. Ng3 {[%clk 0:01:46.3]} 20... h5 {[%clk 0:00:31.7]} 21. Ndf1
{[%clk 0:01:36]} 21... Nxg2 {[%clk 0:00:26.8]} 22. Nf5 {[%clk 0:01:32.1]} 22...
Nh4 {[%clk 0:00:14.3]} 23. Nxg7+ {[%clk 0:01:24.4]} 23... Kd8 {[%clk 0:00:14.6]}
24. Nf5 {[%clk 0:01:01.5]} 24... Nxf5 {[%clk 0:00:13.1]} 25. exf5 {[%clk
0:01:02.4]} 25... Qxf5 {[%clk 0:00:13.8]} 26. Ne3 {[%clk 0:00:57.7]} 26... Qxh3
{[%clk 0:00:11.2]} 27. d4 {[%clk 0:00:58.1]} 27... e4 {[%clk 0:00:02.7]} 28.
Bb6+ {[%clk 0:00:55.8]} 28... Ke7 {[%clk 0:00:01.4]} 29. Qxe4+ {[%clk
0:00:52.7]} 1-0

[Event "*** Titled Tuesday Blitz"]
[Site "Chess.com"]
[Date "2020.04.28"]
[Round "4"]
[White "pooh2012"]
[Black "Angry_Twin"]
[Result "0-1"]
[WhiteElo "2516"]
[BlackElo "2787"]
[TimeControl "180+1"]
[EndTime "10:39:36 PDT"]
[Termination "Angry_Twin won by resignation"]

1. d4 {[%clk 0:03:00.9]} 1... Nf6 {[%clk 0:02:58.3]} 2. c4 {[%clk 0:03:01]} 2...
e6 {[%clk 0:02:58.3]} 3. Nc3 {[%clk 0:03:01.3]} 3... Bb4 {[%clk 0:02:58.1]} 4.
Qc2 {[%clk 0:03:01.8]} 4... d5 {[%clk 0:02:57.7]} 5. cxd5 {[%clk 0:03:00.7]}
5... exd5 {[%clk 0:02:58.6]} 6. Bg5 {[%clk 0:02:59.4]} 6... h6 {[%clk
0:02:59.2]} 7. Bh4 {[%clk 0:02:56.8]} 7... g5 {[%clk 0:02:59]} 8. Bg3 {[%clk
0:02:56.5]} 8... Nc6 {[%clk 0:02:59.5]} 9. e3 {[%clk 0:02:55.1]} 9... h5 {[%clk
0:02:59.8]} 10. h3 {[%clk 0:02:28.6]} 10... Ne4 {[%clk 0:02:57.8]} 11. Bh2
{[%clk 0:02:25]} 11... Be6 {[%clk 0:02:55.4]} 12. Bd3 {[%clk 0:02:20.8]} 12...
Qd7 {[%clk 0:02:22.5]} 13. Ne2 {[%clk 0:01:59.3]} 13... O-O-O {[%clk 0:02:11.5]}
14. Bxe4 {[%clk 0:01:52.8]} 14... dxe4 {[%clk 0:02:11.1]} 15. O-O-O {[%clk
0:01:44.8]} 15... Bxc3 {[%clk 0:02:06.9]} 16. Nxc3 {[%clk 0:01:43.2]} 16... Nb4
{[%clk 0:02:07.1]} 17. Qxe4 {[%clk 0:01:31.4]} 17... Nxa2+ {[%clk 0:02:00.1]}
18. Kd2 {[%clk 0:01:24.4]} 18... Rhe8 {[%clk 0:01:27.9]} 19. Qc2 {[%clk
0:00:57]} 19... Nb4 {[%clk 0:01:18.7]} 20. Qb1 {[%clk 0:00:24.9]} 20... Qc6
{[%clk 0:01:18.5]} 21. f3 {[%clk 0:00:18.6]} 21... g4 {[%clk 0:01:18]} 22. hxg4
{[%clk 0:00:18]} 22... hxg4 {[%clk 0:01:18.9]} 23. Rhf1 {[%clk 0:00:18.4]} 23...
gxf3 {[%clk 0:01:18.7]} 24. gxf3 {[%clk 0:00:19.3]} 24... Bc4 {[%clk 0:01:11.6]}
25. Rf2 {[%clk 0:00:16.1]} 25... Nd3 {[%clk 0:01:11.4]} 26. Rff1 {[%clk
0:00:08.5]} 26... Nc5 {[%clk 0:01:07.3]} 27. Qf5+ {[%clk 0:00:08]} 27... Kb8
{[%clk 0:01:02.3]} 28. Rf2 {[%clk 0:00:05.9]} 28... Nb3+ {[%clk 0:01:02.5]} 29.
Kc2 {[%clk 0:00:03.5]} 29... Rxe3 {[%clk 0:01:03.4]} 30. d5 {[%clk 0:00:02.8]}
30... Qb6 {[%clk 0:01:02.3]} 31. Rfd2 {[%clk 0:00:01.2]} 31... Nxd2 {[%clk
0:01:01.9]} 32. Rxd2 {[%clk 0:00:02.1]} 32... Qb3+ {[%clk 0:01:01.5]} 33. Kc1
{[%clk 0:00:02.7]} 33... Re1+ {[%clk 0:01:02]} 34. Nd1 {[%clk 0:00:03.3]} 34...
Be2 {[%clk 0:01:02.5]} 35. Qxf7 {[%clk 0:00:02]} 35... Rxd1+ {[%clk 0:01:02.3]}
0-1

[Event "*** Titled Tuesday Blitz"]
[Site "Chess.com"]
[Date "2020.04.28"]
[Round "4"]
[White "Saloni1299"]
[Black "Koalaskakistis"]
[Result "0-1"]
[WhiteElo "2314"]
[BlackElo "2525"]
[TimeControl "180+1"]
[EndTime "10:39:37 PDT"]
[Termination "Koalaskakistis won by resignation"]

1. e4 {[%clk 0:03:00.9]} 1... c5 {[%clk 0:02:59.7]} 2. Nf3 {[%clk 0:03:01.1]}
2... Nc6 {[%clk 0:02:59.2]} 3. d4 {[%clk 0:02:56.8]} 3... cxd4 {[%clk
0:03:00.1]} 4. Nxd4 {[%clk 0:02:57.4]} 4... Nf6 {[%clk 0:03:00.4]} 5. Nc3 {[%clk
0:02:58]} 5... e5 {[%clk 0:03:00.7]} 6. Ndb5 {[%clk 0:02:57.8]} 6... d6 {[%clk
0:03:00.8]} 7. Bg5 {[%clk 0:02:57.5]} 7... a6 {[%clk 0:03:01]} 8. Na3 {[%clk
0:02:58.2]} 8... b5 {[%clk 0:03:01.1]} 9. Nd5 {[%clk 0:02:58.9]} 9... Be7 {[%clk
0:03:01.1]} 10. Bxf6 {[%clk 0:02:59.5]} 10... Bxf6 {[%clk 0:03:02]} 11. c4
{[%clk 0:02:58.3]} 11... b4 {[%clk 0:03:01.6]} 12. Nc2 {[%clk 0:02:59]} 12... a5
{[%clk 0:03:02.5]} 13. g3 {[%clk 0:02:58.8]} 13... O-O {[%clk 0:02:59.2]} 14. b3
{[%clk 0:02:57]} 14... Bg5 {[%clk 0:02:58.3]} 15. h4 {[%clk 0:02:57.1]} 15...
Bh6 {[%clk 0:02:57.4]} 16. Bh3 {[%clk 0:02:57.7]} 16... Be6 {[%clk 0:02:54.6]}
17. Kf1 {[%clk 0:02:57.3]} 17... g6 {[%clk 0:02:51.4]} 18. Kg2 {[%clk
0:02:54.8]} 18... f5 {[%clk 0:02:47.9]} 19. Qe2 {[%clk 0:02:43.5]} 19... Ra7
{[%clk 0:02:39.5]} 20. Rhf1 {[%clk 0:02:40.3]} 20... Raf7 {[%clk 0:02:37.9]} 21.
f3 {[%clk 0:02:35.9]} 21... Kh8 {[%clk 0:02:23.6]} 22. Rad1 {[%clk 0:02:35]}
22... Qc8 {[%clk 0:01:50.3]} 23. Nb6 {[%clk 0:02:22.6]} 23... Qc7 {[%clk
0:01:40.3]} 24. Nd5 {[%clk 0:02:22.7]} 24... Qc8 {[%clk 0:01:38]} 25. Nb6 {[%clk
0:02:22.4]} 25... Qb7 {[%clk 0:01:30.6]} 26. Nd5 {[%clk 0:02:20.8]} 26... Qa7
{[%clk 0:01:12.7]} 27. f4 {[%clk 0:02:02.5]} 27... Qb7 {[%clk 0:00:53.6]} 28.
fxe5 {[%clk 0:01:57]} 28... Nxe5 {[%clk 0:00:51.8]} 29. Nf4 {[%clk 0:01:54.4]}
29... Bd7 {[%clk 0:00:45.8]} 30. Rxd6 {[%clk 0:01:51.3]} 30... Bc6 {[%clk
0:00:45.4]} 31. Kh2 {[%clk 0:01:48.5]} 31... Bxe4 {[%clk 0:00:43.9]} 32. Nd5
{[%clk 0:01:36.5]} 32... Bd3 {[%clk 0:00:38.3]} 33. Qxe5+ {[%clk 0:01:35]} 33...
Bg7 {[%clk 0:00:35.2]} 34. Qf4 {[%clk 0:01:25.7]} 34... Bxc2 {[%clk 0:00:34.3]}
35. Re1 {[%clk 0:01:25.8]} 35... Be4 {[%clk 0:00:33.4]} 36. Ne3 {[%clk
0:01:09.6]} 36... Qe7 {[%clk 0:00:27.9]} 37. Nd5 {[%clk 0:01:08.4]} 37... Qe5
{[%clk 0:00:27.1]} 38. Qxe4 {[%clk 0:01:05.4]} 38... fxe4 {[%clk 0:00:24.4]} 0-1